[Event "Slovakian-ch Youth 2022"]
[Site "Lubovna"]
[Date "2022.05.23"]
[Round "3.12"]
[White "Babjak, Samuel"]
[Black "Valko, Michal"]
[Result "1-0"]
[ECO "D02"]
[WhiteElo "1577"]
[BlackElo "1906"]
[Annotator "TA"]
[PlyCount "121"]
[EventDate "2022.05.22"]
[EventCountry "SVK"]
[SourceTitle "playchess.com"]
[Source "ChessBase"]
[SourceQuality "1"]
[TimeControl "40/5400+30:1800+30"]

{[%evp 9,121,40,45,38,37,43,42,42,44,41,129,89,87,84,102,88,139,143,183,145,203,87,79,70,101,105,129,124,136,95,150,149,179,186,171,162,187,112,148,78,99,102,148,91,86,68,68,37,32,39,40,36,581,58,63,18,456,62,149,152,145,144,158,159,363,354,339,331,29966,29967,29966,29967,29968,29969,29970,29970,29969,29971,29972,29973,29973,29974,29979,29957,29980,29981,29981,29982,29976,29977,29977,29978,29978,29979,29979,29980,29980,29981,29981,29982,29981,29983,29983,29984,29984,29985,29985,29986,29986,29987,29987,29988,29998,29997]} 1. Nf3 {[%emt 0:00:40]} d5 {[%emt 0:02:06]} 2. d4 {[%emt 0:00:15]} Nc6 {[%emt 0:00:24]} 3. Bf4 {[%emt 0:04:35]} Bg4 {[%emt 0:03:01]} 4. e3 {[%emt 0:01:50]} a6 {[%emt 0:03:55]} 5. c4 {[%emt 0:03:03]} Nf6 {[%emt 0:02:50]} 6. Nc3 {[%emt 0:01:57] D02: 1 d4 d5 2 Nf3 sidelines, including 2...Nf6 3 g3 and 2...Nf6 3 Bf4.} e6 {[%emt 0:02:01]} 7. h3 {[%emt 0:05:47]} Bf5 {[%emt 0:02:49] [#]} 8. a3 $146 {[%emt 0:03:15] White is slightly better.} ({Predecessor:} 8. c5 Ne4 9. Rc1 h6 10. Be2 g5 11. Bh2 Bg7 12. b4 O-O 13. Qb3 Nxc3 14. Qxc3 {0-1 (54) Ismael Namir,M (2169)-Bassel,C (2112) Abu Dhabi 2016}) 8... Be7 {[%emt 0:01:36]} 9. Bd3 {[%emt 0:01:26]} Ne4 {[%emt 0:08:09]} (9... dxc4 10. Bxc4 O-O) (9... Bxd3 $14 10. Qxd3 dxc4 11. Qxc4 Bd6) 10. cxd5 {[%emt 0:05:41]} Nxc3 {[%emt 0:12:04]} 11. bxc3 {[%emt 0:04:02]} Qxd5 {[%emt 0:04:09]} 12. Bxc7 {[%emt 0:04:49]} Bxd3 {[%emt 0:03:19]} (12... b5) (12... b5 $142) 13. Qxd3 $16 {[%emt 0:00:05]} O-O {[%emt 0:00:53]} (13... b5) 14. O-O {[%emt 0:02:37]} Rfc8 {[%emt 0:05:39]} (14... b5 15. a4 b4) (14... b5 $16 15. a4 b4) 15. Bg3 {[%emt 0:04:25]} (15. c4 Qd7 16. Bb6) (15. c4 $18 Qd7 16. Bb6) 15... Na5 {[%emt 0:01:30]} 16. Nd2 $1 {[%emt 0:09:14]} b5 {[%emt 0:07:28]} (16... Nc4) 17. a4 {[%emt 0:07:20]} Nc4 {[%emt 0:09:02]} 18. e4 {[%emt 0:04:56]} Qb7 {[%emt 0:00:38]} 19. axb5 {[%emt 0:05:00]} axb5 {[%emt 0:00:07]} (19... Nxd2 $142 20. Qxd2 Qxb5) 20. Nxc4 {[%emt 0:01:47]} Rxc4 {[%emt 0:00:26]} 21. Rxa8+ {[%emt 0:02:06]} Qxa8 {[%emt 0:03:58]} 22. Rb1 {[%emt 0:00:31]} Qc6 {[%emt 0:00:30]} 23. Rb3 {[%emt 0:00:30]} ({White should play} 23. d5 $18 Qd7 24. Ra1) 23... h6 {[%emt 0:03:23]} 24. f3 {[%emt 0:02:20]} (24. d5 exd5 25. exd5) (24. d5 $142 exd5 25. exd5) 24... Qa6 {[%emt 0:00:30]} 25. Qb1 {[%emt 0:02:51]} Bg5 {[%emt 0:07:15]} (25... b4 $142) 26. f4 {[%emt 0:06:25]} ({Of course not} 26. Rxb5 $6 Rxc3 27. Rc5 Ra3 $11) (26. Kh2 $142) 26... Be7 {[%emt 0:01:37]} 27. Rxb5 {[%emt 0:03:28] Rb8+ is the strong threat.} Rxc3 {[%emt 0:00:24]} 28. Rb8+ {[%emt 0:01:19]} Kh7 $1 {[%emt 0:00:49]} 29. e5+ {[%emt 0:04:29]} g6 {[%emt 0:00:21] And now ...Qa3 would win.} 30. Kh2 {[%emt 0:01:13] Strongly threatening Qb7.} Qa3 $2 {[%emt 0:04:28][%mdl 8192] [#]} (30... Qe2 $14) 31. Bf2 $2 {[%emt 0:02:13]} ({Only move:} 31. Qb5 $1 $18 {[%cal Ob5e8] Intending Qe8! and mate.} Rc7 (31... Bf8 32. Qe8) 32. Qe8) 31... Kg7 {[%emt 0:01:19]} 32. Qb2 {[%emt 0:00:54]} (32. Rb7 $5 {[%cal Rd4d5]} Rc1 33. Qb6 $16) 32... Rd3 $2 {[%emt 0:01:50][%mdl 8192]} (32... Qxb2 $11 33. Rxb2 Ba3) 33. Qxa3 $2 {[%emt 0:01:01]} (33. Qb5 $1 $18 {[%cal Rb5e8] Qe8 would kill now.} Bf8 34. Rb7) 33... Bxa3 $18 {[%emt 0:00:02][%mdl 4096] Endgame KRB-KRB} (33... Rxa3 $14 34. g3 Rd3) 34. Bh4 $1 $16 {[%emt 0:00:38][%cal Bf2h4,Bh4g5,Bg5f6][%mdl 32]} g5 {[%emt 0:03:03]} 35. fxg5 {[%emt 0:00:56]} hxg5 {[%emt 0:01:34]} 36. Bxg5 {[%emt 0:00:08]} Rxd4 {[%emt 0:00:06]} (36... Kg6 $16 {is a better defense.}) 37. Bf6+ {[%emt 0:00:12]} Kg6 {[%emt 0:00:28]} 38. Rg8+ {[%emt 0:01:51]} Kf5 $2 {[%emt 0:00:53]} (38... Kh7 $18) 39. Rg5+ {[%emt 0:02:01] White mates.} Ke4 {[%emt 0:01:19]} 40. Rg4+ {[%emt 0:00:37]} Kd5 {[%emt 0:00:01] [#]} 41. Rxd4+ $1 {[%emt 0:02:35]} (41. Rg7 Ke4 42. Rxf7 Bc1) ({Not} 41. Rg7 Rf4 42. Rxf7 Ke4 $18) 41... Kxd4 {[%emt 0:00:02] KB-KB} 42. h4 {[%emt 0:06:53][%cal Bh3h4,Bh4h5,Bh5h6][%mdl 32]} Bc1 {[%emt 0:04:00]} 43. g3 {[%emt 0:03:23][%cal Bg2g3,Bg3g4][%mdl 32]} Ke4 {[%emt 0:01:02]} 44. h5 {[%emt 0:02:15]} Kf5 {[%emt 0:03:40]} 45. Kh3 {[%emt 0:03:05]} Bh6 {[%emt 0:01:08]} 46. Kh4 {[%emt 0:03:12]} Bf8 {[%emt 0:00:26]} 47. g4+ {[%emt 0:05:50]} Kf4 {[%emt 0:01:47]} 48. g5 {[%emt 0:00:09]} Kf5 {[%emt 0:00:11] [#]} 49. h6 $1 {[%emt 0:00:49]} Kg6 {[%emt 0:00:10]} 50. Kg4 {[%emt 0:00:10]} Bc5 {[%emt 0:00:32]} 51. Kf3 {[%emt 0:00:57]} Bb4 {[%emt 0:00:53]} 52. Ke4 {[%emt 0:00:24]} Bc5 {[%emt 0:00:20]} 53. Kd3 {[%emt 0:00:12]} Ba3 {[%emt 0:00:17]} 54. Kc4 {[%emt 0:00:14]} Bf8 {[%emt 0:00:09]} 55. Kb5 {[%emt 0:00:14]} Ba3 {[%emt 0:00:06]} 56. Kc6 {[%emt 0:00:06]} Bb4 {[%emt 0:00:18]} 57. Kd7 {[%emt 0:00:06]} Bc5 {[%emt 0:00:36]} 58. Ke8 {[%emt 0:00:16]} Bb4 {[%emt 0:00:11]} 59. h7 {[%emt 0:01:41]} Kxh7 {[%emt 0:00:22]} 60. Kxf7 {[%emt 0:00:11]} Bc3 {[%emt 0:01:32]} 61. g6+ {[%emt 0:00:58] Weighted Error Value: White=0.37/Black=0.40} 1-0

[Event "Slovakian-ch Youth 2022"]
[Site "Lubovna"]
[Date "2022.05.23"]
[Round "3.13"]
[White "Kostelansky, Karol"]
[Black "Kostura, Daniel"]
[Result "1-0"]
[ECO "A03"]
[WhiteElo "1821"]
[BlackElo "1510"]
[Annotator "NA RC COMBH"]
[PlyCount "113"]
[EventDate "2022.05.22"]
[EventCountry "SVK"]
[SourceTitle "playchess.com"]
[Source "ChessBase"]
[SourceQuality "1"]
[TimeControl "40/5400+30:1800+30"]

1. f4 {[%emt 0:00:11]} Nf6 {[%emt 0:00:23]} 2. Nf3 {[%emt 0:00:30]} g6 {[%emt 0:00:36]} 3. g3 {[%emt 0:01:16]} Bg7 {[%emt 0:00:10]} 4. Bg2 {[%emt 0:00:18]} O-O {[%emt 0:00:54]} 5. O-O {[%emt 0:01:14]} d5 {[%emt 0:01:29]} 6. d3 {[%emt 0:03:10]} c5 {[%emt 0:02:47]} 7. e3 {[%emt 0:06:40]} Qb6 {[%emt 0:05:41]} 8. Re1 {[%emt 0:08:11]} Bg4 {[%emt 0:03:22]} 9. Nbd2 {[%emt 0:04:39]} Nc6 {[%emt 0:02:50]} 10. h3 {[%emt 0:12:15]} Bxf3 {[%emt 0:04:27]} 11. Nxf3 {[%emt 0:12:24]} Rac8 {[%emt 0:00:55]} (11... Rae8 $15 {should be considered.}) 12. Rb1 {[%emt 0:05:36]} Nd7 {[%emt 0:02:58]} 13. Bd2 {[%emt 0:02:28]} Rfe8 {[%emt 0:06:50]} 14. e4 {[%emt 0:12:28]} e6 {[%emt 0:11:39]} (14... c4+ $11 15. Kh2 dxe4 16. dxe4 (16. Be3 Qa6 $11) 16... e5) 15. Kh2 {[%emt 0:03:12]} Qc7 {[%emt 0:11:22]} 16. Bc3 {[%emt 0:04:52]} Nf6 {[%emt 0:03:54]} 17. exd5 {[%emt 0:04:34]} exd5 {[%emt 0:02:38]} 18. Ne5 {[%emt 0:01:07]} Nxe5 {[%emt 0:09:40]} 19. Bxe5 {[%emt 0:02:16]} Qa5 {[%emt 0:06:22]} 20. Bxf6 {[%emt 0:04:07]} Bxf6 {[%emt 0:02:09]} 21. Bxd5 {[%emt 0:00:30]} Rxe1 {[%emt 0:02:34]} 22. Qxe1 {[%emt 0:00:08]} Qxe1 {[%emt 0:00:04]} 23. Rxe1 {[%emt 0:00:05]} Rc7 {[%emt 0:00:24]} 24. c3 {[%emt 0:03:06]} b6 {[%emt 0:00:48]} 25. Kg2 {[%emt 0:00:54]} Re7 {[%emt 0:00:24]} 26. Rxe7 {[%emt 0:01:09]} Bxe7 {[%emt 0:00:02]} 27. Kf3 {[%emt 0:00:18]} Kf8 {[%emt 0:05:08]} 28. Ke4 {[%emt 0:01:58]} f6 {[%emt 0:01:04]} 29. Bc4 {[%emt 0:01:52]} Bd8 {[%emt 0:04:49]} 30. Ba6 {[%emt 0:01:20]} Ke7 {[%emt 0:01:51]} 31. Kd5 {[%emt 0:00:18]} Kd7 {[%emt 0:00:28]} 32. Bb5+ {[%emt 0:00:49]} Ke7 {[%emt 0:00:24]} 33. Kc6 {[%emt 0:00:52]} a5 {[%emt 0:00:12]} 34. d4 {[%emt 0:01:08]} cxd4 $18 {[%emt 0:01:28]} 35. cxd4 {[%emt 0:00:05]} h5 {[%emt 0:04:10]} 36. h4 {[%emt 0:00:56]} g5 {[%emt 0:00:28]} 37. hxg5 {[%emt 0:01:01]} fxg5 {[%emt 0:00:02]} 38. fxg5 {[%emt 0:00:18]} Ke6 {[%emt 0:02:22]} 39. Be2 {[%emt 0:00:55]} Bxg5 {[%emt 0:00:25]} 40. Kxb6 {[%emt 0:00:25]} h4 {[%emt 0:00:51]} 41. gxh4 {[%emt 0:30:19]} Bxh4 {[%emt 0:30:04]} 42. Bc4+ {[%emt 0:00:09]} Kd6 {[%emt 0:00:22]} 43. Kxa5 {[%emt 0:00:17]} Bf6 {[%emt 0:00:07]} 44. d5 $2 {[%emt 0:01:03]} (44. Ka6 $18 Bh8 45. b4) 44... Bxb2 {[%emt 0:00:09]} 45. Kb6 {[%emt 0:00:00]} Bd4+ {[%emt 0:00:00]} 46. Kb7 {[%emt 0:00:00]} Bc5 {[%emt 0:00:00]} 47. a4 {[%emt 0:00:00]} Bb4 {[%emt 0:00:00]} 48. Kb6 {[%emt 0:00:00]} Bc5+ {[%emt 0:00:00]} 49. Kb7 {[%emt 0:00:00]} Bb4 {[%emt 0:00:00]} 50. Bb3 {[%emt 0:00:00]} Ba5 {[%emt 0:00:00]} 51. Ka6 {[%emt 0:00:00]} Bc3 {[%emt 0:00:00]} 52. a5 {[%emt 0:00:00]} Kc5 {[%emt 0:00:00]} 53. Bc4 {[%emt 0:00:00]} Kxc4 {[%emt 0:00:15]} 54. d6 {[%emt 0:00:00]} Bf6 {[%emt 0:00:16]} 55. Kb7 {[%emt 0:00:00]} Kb5 {[%emt 0:02:35]} 56. a6 {[%emt 0:00:00]} Bd8 {[%emt 0:00:14]} 57. a7 {[%emt 0:00:00]} 1-0

[Event "Slovakian-ch Youth 2022"]
[Site "Lubovna"]
[Date "2022.05.23"]
[Round "3.13"]
[White "Kudela, Oliver"]
[Black "Horvath, Simon"]
[Result "1-0"]
[ECO "C50"]
[WhiteElo "1344"]
[BlackElo "1343"]
[Annotator "NA RC COMBH"]
[PlyCount "109"]
[EventDate "2022.05.22"]
[EventCountry "SVK"]
[SourceTitle "playchess.com"]
[Source "ChessBase"]
[SourceQuality "1"]
[TimeControl "40/5400+30:1800+30"]

1. e4 {[%emt 0:00:04]} e5 {[%emt 0:04:53]} 2. Nf3 {[%emt 0:00:11]} Nc6 {[%emt 0:00:13]} 3. Bc4 {[%emt 0:00:21]} Nf6 {[%emt 0:00:35]} 4. d3 {[%emt 0:00:35]} Bc5 {[%emt 0:01:52]} 5. c3 {[%emt 0:01:18]} d5 {[%emt 0:04:02]} 6. exd5 {[%emt 0:01:42]} Nxd5 {[%emt 0:00:38]} 7. Qb3 {[%emt 0:02:04]} Be6 {[%emt 0:04:02]} 8. Qxb7 {[%emt 0:01:20]} Na5 {[%emt 0:12:40]} 9. Qb5+ {[%emt 0:01:01]} c6 {[%emt 0:00:40]} 10. Qxc5 {[%emt 0:01:50]} Kd7 {[%emt 0:04:46]} 11. Nxe5+ {[%emt 0:00:00]} Ke8 {[%emt 0:03:44]} 12. Bxd5 {[%emt 0:01:26]} Bxd5 {[%emt 0:01:25]} 13. f3 {[%emt 0:01:52]} f6 {[%emt 0:01:17]} 14. Nc4 {[%emt 0:01:03]} Nxc4 {[%emt 0:02:59]} 15. dxc4 {[%emt 0:00:36]} Be6 {[%emt 0:04:39]} 16. Qxc6+ {[%emt 0:01:26]} Bd7 {[%emt 0:01:02]} 17. Qe4+ {[%emt 0:00:37]} Kf7 {[%emt 0:01:51]} 18. O-O {[%emt 0:00:54]} Qb6+ {[%emt 0:01:19]} 19. Kh1 {[%emt 0:00:48]} Rae8 {[%emt 0:04:01]} 20. Qd4 {[%emt 0:01:04]} Qe6 {[%emt 0:01:08]} 21. Qd5 {[%emt 0:00:46]} Re7 {[%emt 0:02:27]} 22. Qxe6+ {[%emt 0:00:26]} Rxe6 {[%emt 0:00:15]} 23. Kg1 {[%emt 0:00:24]} Rc8 {[%emt 0:01:50]} 24. Kf2 {[%emt 0:01:10]} Rxc4 {[%emt 0:00:44]} 25. Nd2 {[%emt 0:01:33]} Rc7 {[%emt 0:02:56]} 26. Ne4 {[%emt 0:00:37]} Bb5 {[%emt 0:01:05]} 27. Re1 {[%emt 0:00:47]} Rce7 {[%emt 0:05:09]} 28. Bf4 {[%emt 0:00:46]} Bc6 {[%emt 0:02:44]} 29. Nd6+ {[%emt 0:01:27]} Kg6 {[%emt 0:02:48]} 30. Rxe6 {[%emt 0:00:40]} Rxe6 {[%emt 0:00:37]} 31. Re1 {[%emt 0:00:26]} Rxe1 {[%emt 0:00:21]} 32. Kxe1 {[%emt 0:00:10]} Bd5 {[%emt 0:01:07]} 33. c4 {[%emt 0:00:45]} Be6 {[%emt 0:01:24]} 34. Kd2 {[%emt 0:01:13]} h5 {[%emt 0:01:43]} 35. Bg3 {[%emt 0:00:39]} Kh7 {[%emt 0:00:50]} 36. Ke3 {[%emt 0:00:24]} g5 {[%emt 0:01:41]} 37. h4 {[%emt 0:00:29]} g4 {[%emt 0:01:01]} 38. fxg4 {[%emt 0:00:28]} Bxg4 {[%emt 0:00:35]} 39. Bf4 {[%emt 0:00:34]} Kg7 {[%emt 0:03:02]} 40. c5 {[%emt 0:00:42]} Bd7 {[%emt 0:00:14]} 41. Kd4 {[%emt 0:30:57]} Bc6 {[%emt 0:31:25]} 42. g3 {[%emt 0:00:37]} Kf8 {[%emt 0:01:32]} 43. b4 {[%emt 0:00:34]} a6 {[%emt 0:00:26]} 44. Kc4 {[%emt 0:00:36]} Ke7 {[%emt 0:01:15]} 45. b5 {[%emt 0:00:16]} axb5+ {[%emt 0:00:14]} 46. Nxb5 {[%emt 0:00:15]} Bxb5+ {[%emt 0:00:28]} 47. Kxb5 {[%emt 0:00:13]} Kd7 {[%emt 0:00:05]} 48. c6+ {[%emt 0:00:42]} Kd8 {[%emt 0:01:23]} 49. Kb6 {[%emt 0:00:26]} Kc8 {[%emt 0:00:18]} 50. a4 {[%emt 0:00:14]} f5 {[%emt 0:00:29]} 51. a5 {[%emt 0:00:13]} Kd8 {[%emt 0:00:59]} 52. a6 {[%emt 0:00:26]} Kc8 {[%emt 0:00:50]} 53. a7 {[%emt 0:00:11]} Kd8 {[%emt 0:01:02]} 54. a8=Q+ {[%emt 0:00:21]} Ke7 {[%emt 0:00:49]} 55. c7 {[%emt 0:00:07]} 1-0

[Event "Slovakian-ch Youth 2022"]
[Site "Lubovna"]
[Date "2022.05.23"]
[Round "3.14"]
[White "Chovanec, Adrian"]
[Black "Sokolovsky, Jakub"]
[Result "0-1"]
[ECO "B20"]
[WhiteElo "1498"]
[BlackElo "1613"]
[Annotator "NA COMBH"]
[PlyCount "50"]
[EventDate "2022.05.22"]
[EventCountry "SVK"]
[SourceTitle "playchess.com"]
[Source "ChessBase"]
[SourceQuality "1"]
[TimeControl "40/5400+30:1800+30"]

1. e4 {[%emt 0:00:04]} c5 {[%emt 0:00:37]} 2. Bc4 {[%emt 0:00:28]} d6 {[%emt 0:00:45]} 3. h3 {[%emt 0:00:30]} Nf6 {[%emt 0:00:24]} 4. Nc3 {[%emt 0:00:24]} a6 {[%emt 0:00:56]} 5. a3 {[%emt 0:02:19]} b5 {[%emt 0:04:29]} 6. Ba2 {[%emt 0:00:35]} Bb7 {[%emt 0:04:29]} 7. Bd5 {[%emt 0:04:27]} Nxd5 {[%emt 0:05:12]} 8. Nxd5 {[%emt 0:04:43]} e6 {[%emt 0:01:43]} 9. Nc3 {[%emt 0:04:13]} b4 {[%emt 0:06:15]} 10. axb4 {[%emt 0:01:22]} cxb4 {[%emt 0:00:07]} 11. Na4 {[%emt 0:09:50]} Bxe4 {[%emt 0:02:58]} 12. Nf3 {[%emt 0:07:55]} Be7 {[%emt 0:07:50]} 13. d3 {[%emt 0:03:35]} Bb7 {[%emt 0:04:59]} 14. b3 {[%emt 0:04:54]} Bf6 {[%emt 0:05:39]} 15. Bb2 {[%emt 0:05:50]} O-O {[%emt 0:02:27]} 16. O-O {[%emt 0:01:53]} Nd7 {[%emt 0:03:06]} 17. Re1 {[%emt 0:06:36]} Bxb2 {[%emt 0:03:56]} 18. Nxb2 {[%emt 0:00:30]} Qf6 {[%emt 0:00:17]} 19. Nc4 {[%emt 0:03:58]} Bxf3 {[%emt 0:00:55]} 20. Qxf3 {[%emt 0:00:16]} Qxf3 {[%emt 0:00:07]} 21. gxf3 {[%emt 0:00:15]} d5 {[%emt 0:00:36]} 22. Na5 {[%emt 0:02:29]} Rfc8 {[%emt 0:05:42]} 23. Re2 {[%emt 0:01:52]} Rc7 {[%emt 0:05:46]} 24. d4 {[%emt 0:01:55]} Rac8 {[%emt 0:02:57]} 25. Ra2 {[%emt 0:00:48]} Nf6 {[%emt 0:04:58]} 0-1

[Event "Slovakian-ch Youth 2022"]
[Site "Lubovna"]
[Date "2022.05.23"]
[Round "3.14"]
[White "Kakus, Oliver"]
[Black "Vida, Gergo"]
[Result "0-1"]
[ECO "B20"]
[WhiteElo "1000"]
[BlackElo "1821"]
[Annotator "NA RC COMBH"]
[PlyCount "64"]
[EventDate "2022.05.22"]
[EventCountry "SVK"]
[SourceTitle "playchess.com"]
[Source "ChessBase"]
[SourceQuality "1"]
[TimeControl "40/5400+30:1800+30"]

{[%evp 24,58,-254,-795,-735,-1675,-1728,-1754,-1773,-1939,-2092,-2091,-2249,32767,32767,-2593,-2510,32767,-2654,-2792,-3181,-6943,-29992,32767,32767,-29995,-29994,-29995,-29995,32767,32767,32767,32767,-29998,-29996,-29996,-29997]} 1. e4 {[%emt 0:00:17]} c5 {[%emt 0:00:04]} 2. d3 {[%emt 0:00:25]} g6 {[%emt 0:00:04]} 3. Nf3 {[%emt 0:00:19]} Bg7 {[%emt 0:00:16]} 4. Be3 {[%emt 0:01:40]} d6 {[%emt 0:00:14]} 5. e5 {[%emt 0:00:21]} Nc6 {[%emt 0:01:54]} 6. Nc3 {[%emt 0:00:31]} Nxe5 {[%emt 0:00:54]} 7. Ng5 {[%emt 0:02:33]} a6 {[%emt 0:04:08]} 8. Bf4 {[%emt 0:01:52]} e6 {[%emt 0:03:36]} 9. d4 {[%emt 0:02:36]} cxd4 {[%emt 0:01:02]} 10. Qxd4 {[%emt 0:00:19]} Ne7 {[%emt 0:01:44]} 11. Rd1 {[%emt 0:00:32]} Nf5 {[%emt 0:00:50]} 12. Qa4+ {[%emt 0:00:37]} Bd7 {[%emt 0:03:42]} 13. Nb5 $2 {[%emt 0:00:16]} (13. Qb3) 13... axb5 {[%emt 0:01:39]} 14. Qd4 {[%emt 0:00:59]} Nxd4 {[%emt 0:01:29]} 15. Rxd4 {[%emt 0:00:21]} Bc6 {[%emt 0:00:33]} 16. a3 {[%emt 0:02:44]} Nc4 {[%emt 0:00:55]} 17. Bxc4 $19 {[%emt 0:01:12]} Bxd4 {[%emt 0:00:26]} 18. O-O {[%emt 0:03:21]} bxc4 {[%emt 0:00:07]} 19. Nf3 {[%emt 0:00:51]} Bxf3 {[%emt 0:00:00]} 20. gxf3 {[%emt 0:00:46]} e5 {[%emt 0:00:48]} 21. Bg3 {[%emt 0:01:09]} h5 {[%emt 0:00:16]} 22. f4 {[%emt 0:00:42]} h4 {[%emt 0:00:28]} 23. Rd1 {[%emt 0:00:37]} hxg3 {[%emt 0:00:16]} 24. Kf1 {[%emt 0:00:19]} gxf2 {[%emt 0:00:31]} 25. fxe5 {[%emt 0:00:37]} dxe5 {[%emt 0:00:34]} 26. c3 {[%emt 0:00:20]} Rxh2 {[%emt 0:00:11]} 27. cxd4 {[%emt 0:00:27]} Qh4 {[%emt 0:00:05]} 28. dxe5 {[%emt 0:00:45]} Rh1+ {[%emt 0:00:16]} 29. Ke2 {[%emt 0:00:10]} Rxd1 {[%emt 0:00:40]} 30. Kxd1 {[%emt 0:00:10]} f1=Q+ {[%emt 0:00:14]} 31. Kc2 {[%emt 0:00:21]} Qhe1 {[%emt 0:00:27]} 32. b4 {[%emt 0:00:12]} Qfe2# {[%emt 0:00:25]} 0-1

[Event "Slovakian-ch Youth 2022"]
[Site "Lubovna"]
[Date "2022.05.23"]
[Round "3.15"]
[White "Sandor, Samuel"]
[Black "Compel, Daniel"]
[Result "1/2-1/2"]
[ECO "B90"]
[WhiteElo "2054"]
[BlackElo "2106"]
[Annotator "TA"]
[PlyCount "91"]
[EventDate "2022.05.22"]
[EventCountry "SVK"]
[SourceTitle "playchess.com"]
[Source "ChessBase"]
[SourceQuality "1"]
[TimeControl "40/5400+30:1800+30"]

{[%evp 12,91,7,19,35,9,14,17,17,0,0,0,-2,-9,-6,-18,-23,-57,-29,-15,-14,-107,34,13,47,-39,-44,-37,-31,-62,-39,-47,-43,-100,-14,-29,-34,-53,-49,-99,-90,-95,-89,-171,-173,-169,-158,-233,-247,-246,-168,-162,-164,-167,-59,-56,0,0,0,-63,0,0,0,0,0,0,-8,-8,0,0,0,0,0,0,8,0,8,8,104,-29950,-7225,-2766]} 1. e4 {[%emt 0:00:03]} c5 {[%emt 0:00:03]} 2. Nf3 {[%emt 0:00:04]} d6 {[%emt 0:00:03]} 3. d4 {[%emt 0:00:04]} cxd4 {[%emt 0:00:04]} 4. Nxd4 {[%emt 0:00:05]} Nf6 {[%emt 0:00:03]} 5. Nc3 {[%emt 0:00:05]} a6 {[%emt 0:00:03]} 6. h3 {[%emt 0:00:05]} e5 {[%emt 0:00:02]} 7. Nde2 {[%emt 0:00:05]} h5 {[%emt 0:00:03] B90: Sicilian Najdorf: Unusual White 6th moves, 6 Be3 Ng4 and 6 Be3 e5.} 8. g3 {[%emt 0:00:05]} Be6 {[%emt 0:00:02]} 9. Bg2 {[%emt 0:00:05]} b5 $1 {[%emt 0:00:03] The position is equal. The main line 9...b5 scores better than 9...Nbd7.} 10. O-O {[%emt 0:01:09]} Nbd7 {[%emt 0:00:05]} 11. Be3 {[%emt 0:02:41]} Be7 {[%emt 0:00:03]} 12. f4 {[%emt 0:01:42][%cal Bf2f4,Bf4f5][%mdl 32]} Rc8 {[%emt 0:00:53]} 13. a3 {[%emt 0:10:42]} O-O {[%emt 0:00:43]} 14. Nd5 {[%emt 0:02:59] [#]} Nxd5 $146 {[%emt 0:00:06]} (14... Bxd5 $5 15. exd5 Nb6 $11) ({Predecessor:} 14... Bxd5 15. exd5 Re8 16. fxe5 dxe5 17. Nc3 Bc5 18. Bxc5 Nxc5 19. Qe2 e4 20. Rad1 Qd6 {0-1 (42) Dourerassou,J (2477)-Sjugirov,S (2663) Chess.com INT 2021}) 15. exd5 {[%emt 0:00:03]} Bf5 {[%emt 0:00:05]} 16. Nc3 {[%emt 0:01:20]} ({Of course not} 16. fxe5 Bxc2 17. Qd2 Nxe5 $17) (16. c3 $11) 16... Bh7 {[%emt 0:01:07]} ({Black should try} 16... exf4 $1 $17 17. Bxf4 (17. Rxf4 Bg5 $17) 17... Bg6) 17. f5 $1 $14 {[%emt 0:08:49]} ({Reject} 17. Qxh5 Bxc2 18. f5 Rc4 $11) 17... Bg5 {[%emt 0:01:53]} 18. Qd2 {[%emt 0:09:04]} (18. Bxg5 $1 $14 Qxg5 19. Ne4 Qe3+ 20. Kh2) 18... Bxe3+ $15 {[%emt 0:00:08]} 19. Qxe3 {[%emt 0:00:02]} Qb6 $36 {[%emt 0:05:27][%mdl 2048] Black has some pressure.} 20. Rae1 {[%emt 0:01:49]} Qxe3+ {[%emt 0:23:16]} 21. Rxe3 {[%emt 0:00:03]} Nb6 {[%emt 0:00:19]} 22. g4 {[%emt 0:08:10]} (22. b3 $15) 22... f6 {[%emt 0:12:12]} (22... Nc4 $17 23. Re2 Nxb2) 23. b3 {[%emt 0:06:00]} Rc7 {[%emt 0:13:24]} 24. Rd1 {[%emt 0:03:41]} Kf7 {[%emt 0:03:23]} 25. Be4 {[%emt 0:05:17]} (25. Rd2 $15) 25... Rfc8 $17 {[%emt 0:09:20]} 26. Rdd3 {[%emt 0:05:27]} h4 {[%emt 0:02:44]} 27. Rf3 {[%emt 0:10:04]} (27. a4 $17) 27... Nd7 $19 {[%emt 0:01:00]} 28. Rde3 {[%emt 0:00:45]} Ke7 {[%emt 0:06:19]} 29. Na2 {[%emt 0:02:57]} (29. a4 $17 b4 30. Na2) 29... Nc5 $1 {[%emt 0:06:10]} 30. Nb4 {[%emt 0:00:22]} Nxe4 {[%emt 0:00:37]} 31. Rxe4 {[%emt 0:00:14]} Bg8 $1 {[%emt 0:00:04] Hoping for ...a5.} 32. Rd3 {[%emt 0:02:09]} a5 {[%emt 0:01:57]} (32... Kd7 $1 $19 {aiming for ...Rc5.} 33. Re2 Rc3) 33. Nc6+ $15 {[%emt 0:02:10]} Kd7 {[%emt 0:00:09]} (33... Kf8 $15) 34. c4 $11 {[%emt 0:01:50]} bxc4 {[%emt 0:00:07]} 35. Rxc4 {[%emt 0:04:01]} (35. bxc4 $11 Rxc6 36. dxc6+ Rxc6 37. Rb3) 35... Bxd5 {[%emt 0:01:24]} 36. Nxe5+ $1 {[%emt 0:05:01]} fxe5 {[%emt 0:00:11]} 37. Rxc7+ {[%emt 0:00:25]} Rxc7 {[%emt 0:00:08]} 38. Rxd5 {[%emt 0:00:04][%mdl 4096] Endgame KR-KR} Rc3 {[%emt 0:00:12]} 39. Rxa5 {[%emt 0:01:28]} Rxh3 {[%emt 0:10:20]} 40. Ra7+ {[%emt 0:00:38]} Ke8 {[%emt 0:00:12]} 41. Rxg7 {[%emt 0:33:44]} Rxb3 {[%emt 0:30:10]} 42. a4 {[%emt 0:01:58]} Ra3 {[%emt 0:00:36]} 43. Kg2 {[%emt 0:00:36]} Rxa4 {[%emt 0:02:04]} 44. Kh3 {[%emt 0:00:07]} e4 {[%emt 0:00:29]} (44... d5 $11 {keeps the balance.}) 45. Kxh4 $2 {[%emt 0:02:10][%mdl 8192] [#]} (45. f6 $16 Kf8 46. Kxh4) 45... e3 $1 {[%emt 0:01:05] ( -> ...e2)} 46. Rb7 {[%emt 0:00:00][%mdl 32768] Weighted Error Value: White=0.44/Black=0.24 (precise) . An unexpected result.} 1/2-1/2

[Event "Slovakian-ch Youth 2022"]
[Site "Lubovna"]
[Date "2022.05.23"]
[Round "3.15"]
[White "Valchev, Martin V"]
[Black "Otahal, Kristian"]
[Result "0-1"]
[ECO "C47"]
[WhiteElo "1193"]
[BlackElo "1000"]
[Annotator "NA RC COMBH"]
[PlyCount "26"]
[EventDate "2022.05.22"]
[EventCountry "SVK"]
[SourceTitle "playchess.com"]
[Source "ChessBase"]
[SourceQuality "1"]
[TimeControl "40/5400+30:1800+30"]

1. e4 {[%emt 0:00:04]} e5 {[%emt 0:00:05]} 2. Nc3 {[%emt 0:00:15]} Nc6 {[%emt 0:00:09]} 3. Nf3 {[%emt 0:01:03]} Nf6 {[%emt 0:00:08]} 4. d3 {[%emt 0:00:45]} Bc5 {[%emt 0:00:13]} 5. Bg5 {[%emt 0:00:29]} O-O {[%emt 0:01:05]} 6. Nd5 {[%emt 0:00:55]} d6 {[%emt 0:02:45]} 7. Bxf6 {[%emt 0:00:49]} gxf6 {[%emt 0:00:13]} 8. Nh4 {[%emt 0:01:58]} Kh8 {[%emt 0:01:48]} 9. Nf5 {[%emt 0:03:27]} Bxf5 {[%emt 0:01:37]} 10. exf5 Rg8 {[%emt 0:00:58]} 11. Ne3 {[%emt 0:01:19]} Qd7 {[%emt 0:01:05]} 12. Ng4 {[%emt 0:02:02]} Qxf5 {[%emt 0:00:26]} 13. Nh6 {[%emt 0:00:11]} Qxf2# {[%emt 0:00:09]} 0-1